bitfinex-derivatives/quotes_SOLF0:USTF0_20250817
["timestamp","ask_amount","ask_price","bid_price","bid_amount"]
[1755390127047,0.92241631,188.75,188.68,1.26426378]
[1755390127343,0.92241631,188.75,188.7,1.26426378]
[1755390127344,4.06571735,188.74,188.7,1.26426378]
[1755390127646,0.92241631,188.75,188.7,1.26426378]
[1755390127848,4.06614618,188.74,188.69,6.56026378]
[1755390128046,0.92241631,188.75,188.69,6.56026378]
[1755390128251,4.06614477,188.74,188.69,6.56026378]
[1755390128546,0.92241631,188.75,188.7,5.2959]
[1755390128746,4.06662715,188.74,188.71,1.26426378]
[1755390128952,1.26426378,188.82,188.74,5.2947]
[1755390129142,8.98674648,188.81,188.75,1.26426378]
[1755390129348,8.98674648,188.8,188.75,1.26426378]
[1755390129547,8.98674648,188.79,188.75,1.26426378]
[1755390129748,4.06734621,188.78,188.75,1.26426378]
[1755390129948,2.18633792,188.82,188.75,1.26426378]
[1755390130143,8.98792406,188.81,188.75,1.26426378]
[1755390130340,8.98792406,188.8,188.75,6.55876378]
[1755390130548,4.06784292,188.79,188.75,1.26426378]
[1755390130749,2.18633792,188.82,188.75,1.26426378]
[1755390130945,8.98899975,188.81,188.75,1.26426378]
[1755390131146,8.98899975,188.8,188.75,1.26426378]
[1755390131346,4.06830804,188.79,188.75,1.26426378]
[1755390131547,2.18633792,188.82,188.75,1.26426378]
[1755390131748,8.98987646,188.81,188.75,6.55866378]
[1755390131947,8.98987646,188.8,188.75,6.55866378]
[1755390132148,2.18633792,188.82,188.75,1.26426378]
[1755390132351,8.99139414,188.81,188.75,1.26426378]
[1755390132558,4.06937944,188.8,188.77,1.26426378]
[1755390132750,0.92207414,188.82,188.79,1.26426378]
[1755390132951,80.58538109,188.86,188.79,1.26426378]
[1755390133149,8.99059873,188.85,188.79,1.26426378]
[1755390133350,8.99059873,188.84,188.79,1.26426378]
[1755390133549,8.99059873,188.83,188.79,1.26426378]
[1755390133744,4.06896376,188.82,188.79,1.26426378]
[1755390133950,81.50739415,188.86,188.79,1.26426378]
[1755390134146,8.99037086,188.85,188.79,1.26426378]
[1755390134450,8.99037086,188.84,188.79,1.26426378]
[1755390134651,8.99037086,188.83,188.76,7.2728832]
[1755390134851,4.06886096,188.82,188.76,7.2728832]
[1755390135052,80.24313037,188.86,188.76,7.2728832]
[1755390135352,8.98969324,188.85,188.76,7.2728832]
[1755390135547,8.98969324,188.84,188.76,7.2728832]
[1755390135748,80.24313037,188.86,188.76,7.2728832]
[1755390135749,8.98969324,188.83,188.76,7.2728832]
[1755390135941,4.06875953,188.82,188.76,7.2728832]
[1755390136152,80.24313037,188.86,188.76,7.2728832]
[1755390136451,8.99010781,188.85,188.76,7.2728832]
[1755390136754,8.99010781,188.84,188.76,7.2728832]
[1755390136942,8.99010781,188.83,188.76,7.2728832]
[1755390137139,4.06896883,188.82,188.76,7.2728832]
[1755390137353,80.24313037,188.86,188.76,7.2728832]
[1755390137552,8.98896232,188.85,188.76,7.2728832]
[1755390137849,8.98896232,188.84,188.76,7.2728832]
[1755390138054,8.98896232,188.83,188.76,7.2728832]
[1755390138349,4.06795205,188.82,188.76,7.2728832]
[1755390138553,80.24313037,188.86,188.76,7.2728832]
[1755390138758,8.98872907,188.85,188.76,7.2728832]
[1755390139051,8.98872907,188.84,188.76,7.2728832]
[1755390139252,8.98872907,188.83,188.76,7.2728832]
[1755390139452,4.06784677,188.82,188.76,7.2728832]
[1755390139653,80.24313037,188.86,188.76,7.2728832]
[1755390139852,8.98826745,188.85,188.76,7.2728832]
[1755390140153,8.98826745,188.84,188.76,7.2728832]
[1755390140353,8.98826745,188.83,188.76,7.2728832]
[1755390140554,4.06763849,188.82,188.76,7.2728832]
[1755390140758,80.24313037,188.86,188.76,7.2728832]
[1755390140958,8.98773635,188.85,188.76,7.2728832]
[1755390141250,8.98773635,188.84,188.76,7.2728832]
[1755390141553,8.98773635,188.83,188.76,7.2728832]
[1755390141753,4.06739883,188.82,188.76,7.2728832]
[1755390141953,80.24313037,188.86,188.76,7.2728832]
[1755390142154,8.98728351,188.85,188.76,7.2728832]
[1755390142346,8.98728351,188.84,188.76,7.2728832]
[1755390142551,8.98728351,188.83,188.76,7.2728832]
[1755390142750,4.06719451,188.82,188.76,7.2728832]
[1755390142949,80.24313037,188.86,188.77,5.2939]
[1755390143152,8.98683468,188.85,188.77,5.2939]
[1755390143350,8.98683468,188.84,188.77,5.2939]
[1755390143548,4.06699193,188.83,188.76,1.9787832]
[1755390143753,128.5,188.88,188.79,1.9787832]
[1755390144054,8.98574695,188.87,188.79,1.9787832]
[1755390144252,8.98574695,188.86,188.79,1.9787832]
[1755390144452,8.98574695,188.85,188.73,1.9787832]
[1755390144753,8.98574695,188.84,188.73,1.9787832]
[1755390144951,8.98574695,188.83,188.73,1.9787832]
[1755390145152,8.98574695,188.82,188.71,42.0]
[1755390145455,8.98574695,188.81,188.7,1.9787832]
[1755390145657,8.98574695,188.8,188.7,1.9787832]
[1755390145957,8.98574695,188.79,188.7,1.9787832]
[1755390146152,4.06648582,188.78,188.7,1.9787832]
[1755390146357,1.9787832,188.83,188.71,5.2956]
[1755390146550,8.99264729,188.82,188.7,1.9787832]
[1755390146754,138.30254356,188.88,188.73,1.9787832]
[1755390146755,4.06607496,188.81,188.73,1.9787832]
[1755390146952,1.9787832,188.87,188.73,1.9787832]
[1755390147152,8.99353516,188.86,188.73,1.9787832]
[1755390147448,8.99353516,188.85,188.74,5.2946]
[1755390147649,1.9787832,188.87,188.74,5.2946]
[1755390147650,8.99353516,188.84,188.74,5.2946]
[1755390147849,8.99353516,188.83,188.74,5.2946]
[1755390148048,8.99353516,188.82,188.75,5.2944]
[1755390148255,4.06645249,188.81,188.74,1.9787832]
[1755390148453,1.9787832,188.87,188.74,7.2734832]
[1755390148747,8.99274536,188.86,188.74,7.2734832]
[1755390148949,8.99274536,188.85,188.74,1.9787832]
[1755390149148,8.99274536,188.84,188.74,1.9787832]
[1755390149350,8.99274536,188.83,188.74,1.9787832]
[1755390149650,8.99274536,188.82,188.74,1.9787832]
[1755390149853,4.06609124,188.81,188.74,1.9787832]
[1755390150058,1.9787832,188.87,188.74,1.9787832]
[1755390150361,8.99166821,188.86,188.75,5.2945]
[1755390150558,1.9787832,188.84,188.7,1.9787832]
[1755390150861,1.9787832,188.81,188.7,1.9787832]
[1755390151061,8.99166821,188.8,188.7,1.9787832]
[1755390151255,8.99166821,188.79,188.7,1.9787832]
[1755390151555,8.99166821,188.78,188.7,1.9787832]
[1755390151761,4.06571545,188.77,188.7,1.9787832]
[1755390151963,1.9787832,188.81,188.7,1.9787832]
[1755390152162,8.99060998,188.8,188.7,1.9787832]
[1755390152365,8.99060998,188.79,188.7,1.9787832]
[1755390152563,8.99060998,188.78,188.7,1.9787832]
[1755390152864,1.9787832,188.83,188.7,1.9787832]
[1755390153054,8.99157364,188.82,188.73,1.9787832]
[1755390153256,8.99157364,188.81,188.73,1.9787832]
[1755390153456,4.06564318,188.8,188.73,1.9787832]
[1755390153658,1.9787832,188.86,188.73,1.9787832]
[1755390153850,8.99274208,188.85,188.74,5.2947]
[1755390154057,8.99274208,188.84,188.73,1.9787832]
[1755390154254,8.99311963,188.83,188.75,5.2945]
[1755390154455,8.99311963,188.82,188.75,5.2945]
[1755390154657,8.99311963,188.81,188.75,5.2945]
[1755390154863,4.06614196,188.8,188.75,5.2945]
[1755390155163,1.9787832,188.86,188.75,5.2945]
[1755390155364,8.99377293,188.85,188.75,5.2945]
[1755390155665,8.99377293,188.84,188.75,5.2945]
[1755390155863,8.99377293,188.83,188.75,5.2945]
[1755390156065,8.99377293,188.82,188.75,5.2945]
[1755390156260,8.99377293,188.81,188.75,5.2945]
[1755390156463,4.06649948,188.8,188.75,5.2945]
[1755390156661,1.9787832,188.86,188.75,5.2945]
[1755390156864,8.99464093,188.85,188.75,5.2945]
[1755390157064,8.99464093,188.84,188.75,5.2945]
[1755390157269,8.99464093,188.83,188.75,5.2945]
[1755390157562,8.99464093,188.82,188.75,5.2945]
[1755390157763,8.99464093,188.81,188.75,5.2945]
[1755390157965,4.06700585,188.8,188.76,5.2942]
[1755390158160,1.9787832,188.86,188.73,1.9787832]
[1755390158373,8.99623434,188.85,188.77,5.294]
[1755390158575,8.99623434,188.84,188.77,5.294]
[1755390158772,8.99623434,188.83,188.77,5.294]
[1755390159075,8.99623434,188.82,188.77,5.294]
[1755390159269,4.06763366,188.81,188.77,5.294]
[1755390159576,135.38227311,188.88,188.77,5.294]
[1755390159776,8.99728621,188.87,188.77,5.294]
[1755390159972,8.99728621,188.86,188.76,7.2729832]
[1755390160176,8.99728621,188.85,188.76,1.9787832]
[1755390160372,8.99728621,188.84,188.76,1.9787832]
[1755390160573,8.99728621,188.83,188.76,1.9787832]
[1755390160771,8.99728621,188.82,188.76,1.9787832]
[1755390160970,4.0681876,188.81,188.76,1.9787832]
[1755390161177,135.38227311,188.88,188.75,5.2945]
[1755390161373,9.00034304,188.87,188.75,5.2945]
[1755390161674,9.00034304,188.86,188.75,5.2945]
[1755390161873,9.00034304,188.85,188.75,5.2945]
[1755390162075,9.00034304,188.84,188.75,5.2945]
[1755390162279,135.38227311,188.88,188.75,5.2945]
[1755390162280,9.00034304,188.83,188.75,5.2945]
[1755390162472,9.00034304,188.82,188.75,5.2945]
[1755390162683,4.06957006,188.81,188.75,5.2945]
[1755390162971,135.38227311,188.88,188.75,5.2945]
[1755390163171,14.92275218,188.87,188.75,5.2945]
[1755390163366,9.00221129,188.86,188.75,5.2945]
[1755390163575,9.00221129,188.85,188.75,5.2945]
[1755390163775,9.00221129,188.84,188.75,5.2945]
[1755390163975,9.00221129,188.83,188.75,5.2945]
[1755390164170,9.00221129,188.82,188.75,5.2945]
[1755390164368,9.00221129,188.81,188.75,5.2945]
[1755390164568,4.07041444,188.8,188.75,5.2945]
[1755390164767,5.92054089,188.87,188.75,5.2945]
[1755390164968,9.00677311,188.86,188.75,5.2945]
[1755390165176,9.00677311,188.85,188.75,5.2945]
[1755390165379,9.00677311,188.84,188.75,5.2945]
[1755390165578,9.00677311,188.83,188.75,5.2945]
[1755390165778,9.00677311,188.82,188.74,7.2734832]
[1755390166080,9.00677311,188.81,188.74,7.2734832]
[1755390166379,4.07247593,188.8,188.75,5.2945]
[1755390166578,4.07247593,188.79,188.74,1.9787832]
[1755390166772,7.89932409,188.86,188.74,1.9787832]
[1755390166971,5.92054089,188.84,188.71,1.9787832]
[1755390167180,9.01034466,188.83,188.71,7.2742832]
[1755390167379,9.01034466,188.82,188.71,7.2742832]
[1755390167577,9.01034466,188.81,188.71,7.2742832]
[1755390167779,9.01034466,188.8,188.72,5.2953]
[1755390167979,9.01034466,188.79,188.71,1.9787832]
[1755390168179,9.01034466,188.78,188.71,1.9787832]
[1755390168381,9.01034466,188.77,188.71,1.9787832]
[1755390168582,5.92054089,188.83,188.71,1.9787832]
[1755390168780,9.01507019,188.82,188.73,5.2949]
[1755390168978,9.01507019,188.81,188.73,5.2949]
[1755390169282,9.01507019,188.8,188.73,5.2949]
[1755390169477,9.01507019,188.79,188.73,5.2949]
[1755390169782,9.01507019,188.78,188.71,1.9787832]
[1755390169987,9.01507019,188.77,188.71,1.9787832]
[1755390170280,1.9787832,188.86,188.71,7.2743832]
[1755390170281,9.01507019,188.76,188.71,7.2743832]
[1755390170583,9.01507019,188.75,188.71,7.2743832]
[1755390170882,4.07619422,188.74,188.71,7.2743832]
[1755390171103,5.92054089,188.81,188.71,7.2743832]
[1755390171282,8.77018323,188.8,188.71,7.2743832]
[1755390171483,8.77018323,188.79,188.71,7.2743832]
[1755390171681,8.77018323,188.78,188.71,7.2743832]
[1755390171878,8.77018323,188.77,188.71,7.2743832]
[1755390172080,8.77018323,188.76,188.71,7.2743832]
[1755390172283,4.0789281,188.75,188.71,7.2743832]
[1755390172473,4.0789281,188.74,188.71,7.2743832]
[1755390172673,5.92054089,188.8,188.71,1.9787832]
[1755390172982,14.69429851,188.79,188.68,1.9787832]
[1755390173180,8.77375762,188.78,188.68,1.9787832]
[1755390173382,8.77375762,188.77,188.68,7.2751832]
[1755390173577,8.77375762,188.76,188.68,7.2751832]
[1755390173778,8.77375762,188.75,188.68,7.2751832]
[1755390173979,8.77375762,188.74,188.68,7.2751832]
[1755390174285,4.0815605,188.73,188.68,7.2751832]
[1755390174480,4.0815605,188.72,188.68,7.2751832]
[1755390174680,5.92054089,188.79,188.68,7.2751832]
[1755390174880,8.77120024,188.78,188.68,7.2751832]
[1755390175080,8.77120024,188.77,188.69,2.88]
[1755390175280,3.07,188.75,188.69,2.88]
[1755390175481,3.07,188.73,188.69,2.88]
[1755390175681,4.08014971,188.72,188.69,2.88]
[1755390175885,3.07,188.72,188.69,2.88]
[1755390176486,3.07,188.72,188.7,2.88]
[1755390176983,5.92054089,188.79,188.68,1.9787832]
[1755390176984,3.07,188.79,188.71,2.88]
[1755390177176,3.07,188.77,188.71,2.88]
[1755390177377,3.07,188.75,188.72,5.2954]
[1755390177585,4.07843787,188.74,188.73,2.88]
[1755390177779,7.14843787,188.74,188.73,2.88]
[1755390178887,3.07,188.74,188.73,2.88]
[1755390179584,3.07,188.75,188.73,2.88]
[1755390179986,3.07,188.75,188.74,2.88]
[1755390180588,7.1479586,188.75,188.74,2.88]
[1755390181985,4.0779586,188.75,188.74,2.88]
[1755390182384,7.1479586,188.75,188.74,2.88]
[1755390183292,3.07,188.79,188.75,2.88]
[1755390183990,5.92054089,188.86,188.75,2.88]
[1755390184188,3.07,188.78,188.75,2.88]
[1755390184694,3.07,188.79,188.75,2.88]
[1755390186895,3.07,188.79,188.77,1.9787832]
[1755390187094,3.07,188.86,188.78,2.88]
[1755390187296,0.92173222,188.88,188.78,2.88]
[1755390187297,3.07,188.84,188.78,2.88]
[1755390187597,6.84227311,188.88,188.81,2.88]
[1755390187598,3.07,188.82,188.81,2.88]
[1755390187792,4.07792378,188.82,188.81,2.88]
[1755390187993,7.14792378,188.82,188.81,2.88]
[1755390188191,3.07,188.82,188.81,2.88]
[1755390191200,3.07,188.87,188.81,2.88]
[1755390191401,3.07,188.85,188.81,2.88]
[1755390191702,3.07,188.83,188.8,1.9787832]
[1755390192000,3.07,188.83,188.8,4.8587832]
[1755390192602,3.07,188.83,188.81,2.88]
[1755390193102,6.8422487,188.91,188.8,1.9787832]
[1755390193303,3.07,188.89,188.8,4.8587832]
[1755390193498,3.07,188.87,188.8,4.8587832]
[1755390193698,4.07261085,188.86,188.8,1.9787832]
[1755390193905,3.07,188.84,188.81,2.88]
[1755390194104,3.07,188.84,188.8,1.9787832]
[1755390194402,3.07,188.82,188.77,4.8587832]
[1755390195205,3.07,188.82,188.78,2.88]
[1755390195908,3.07,188.82,188.77,1.9787832]
[1755390196106,3.07,188.82,188.77,4.8587832]
[1755390196301,3.07,188.82,188.77,1.9787832]
[1755390196502,3.07,188.82,188.78,2.88]
[1755390196708,3.07,188.82,188.77,1.9787832]
[1755390196910,3.07,188.82,188.77,4.8587832]
[1755390198005,3.07,188.82,188.77,1.9787832]
[1755390199909,2.8,188.8,188.77,4.7987832]
[1755390204706,2.8,188.8,188.78,2.82]
[1755390207307,2.8,188.8,188.77,4.7987832]
[1755390208710,2.8,188.8,188.74,4.7987832]
[1755390209712,2.8,188.8,188.75,2.82]
[1755390210807,2.8,188.8,188.74,1.9787832]
[1755390211909,4.06955889,188.79,188.74,1.9787832]
[1755390212115,2.8,188.77,188.74,4.7987832]
[1755390212410,2.8,188.77,188.71,1.9787832]
[1755390212612,2.8,188.77,188.73,2.82]
[1755390216314,4.07008092,188.76,188.71,1.9787832]
[1755390216613,2.8,188.75,188.72,2.82]
[1755390231424,1.26757933,188.77,188.71,1.26757933]
[1755390231425,4.06894812,188.74,188.71,1.26757933]
[1755390231623,1.26757933,188.77,188.71,1.26757933]
[1755390231924,4.06894812,188.76,188.71,1.26757933]
[1755390232223,4.06894812,188.75,188.71,1.26757933]
[1755390232521,4.06894812,188.74,188.71,1.26757933]
[1755390232721,1.26757933,188.77,188.71,1.26757933]
[1755390232921,4.06859462,188.76,188.71,1.26757933]
[1755390233123,4.06859462,188.75,188.71,1.26757933]
[1755390233322,4.06859462,188.74,188.71,1.26757933]
[1755390233523,1.26757933,188.77,188.71,1.26757933]
[1755390233821,4.06844403,188.76,188.71,1.26757933]
[1755390234022,4.06844403,188.75,188.71,1.26757933]
[1755390234221,4.06844403,188.74,188.71,1.26757933]
[1755390234421,1.26757933,188.77,188.71,1.26757933]
[1755390234621,4.06857152,188.76,188.71,1.26757933]
[1755390234822,4.06857152,188.75,188.71,1.26757933]
[1755390235022,4.06857152,188.74,188.71,1.26757933]
[1755390235222,1.26757933,188.77,188.71,1.26757933]
[1755390235426,4.06879535,188.76,188.71,1.26757933]
[1755390235723,4.06879535,188.75,188.71,1.26757933]
[1755390235923,4.06879535,188.74,188.71,1.26757933]
[1755390236221,1.26757933,188.77,188.71,1.26757933]
[1755390236422,4.06876795,188.76,188.71,1.26757933]
[1755390236623,4.06876795,188.75,188.71,1.26757933]
[1755390236822,4.06876795,188.74,188.71,1.26757933]
[1755390237026,5.92054089,188.81,188.71,1.26757933]
[1755390237324,1.26757933,188.77,188.71,1.26757933]
[1755390237524,4.06878024,188.76,188.71,1.26757933]
[1755390239425,4.06878024,188.75,188.71,1.26757933]
[1755390239626,1.26757933,188.79,188.71,1.26757933]
[1755390239627,4.06878024,188.74,188.71,1.26757933]
[1755390239821,1.26757933,188.79,188.71,1.26757933]
[1755390240023,8.69381334,188.78,188.71,1.26757933]
[1755390240228,8.69381334,188.77,188.71,1.26757933]
[1755390240427,4.07107437,188.76,188.71,1.26757933]
[1755390240627,4.07107437,188.75,188.71,1.26757933]
[1755390240927,4.07107437,188.74,188.71,1.26757933]
[1755390241129,8.88081134,188.84,188.73,1.26757933]
[1755390241130,1.26757933,188.8,188.73,1.26757933]
[1755390241325,8.69557471,188.79,188.75,1.26757933]
[1755390241534,4.07199305,188.78,188.75,1.26757933]
[1755390241728,4.07199305,188.77,188.75,1.26757933]
[1755390241926,4.07199305,188.76,188.75,1.26757933]
[1755390242128,4.07199305,188.81,188.75,1.26757933]
[1755390242324,8.69625292,188.8,188.75,1.26757933]
[1755390242559,8.69625292,188.79,188.75,1.26757933]
[1755390242845,4.07199305,188.78,188.74,1.26757933]
[1755390243039,4.07199305,188.77,188.74,1.26757933]
[1755390243336,4.07199305,188.76,188.74,1.26757933]
[1755390243527,7.18812022,188.82,188.74,1.26757933]
[1755390243730,8.69875228,188.81,188.74,1.26757933]
[1755390243928,8.69875228,188.8,188.74,1.26757933]
[1755390244133,8.69875228,188.79,188.74,1.26757933]
[1755390244335,4.07336215,188.78,188.74,1.26757933]
[1755390244540,4.07336215,188.77,188.74,1.26757933]
[1755390244736,4.07336215,188.76,188.74,1.26757933]
[1755390244932,7.18812022,188.82,188.74,1.26757933]
[1755390245137,1.26757933,188.8,188.72,1.26757933]
[1755390245341,8.70013758,188.79,188.72,1.26757933]
[1755390245540,8.70013758,188.78,188.72,1.26757933]
[1755390245740,4.07400659,188.77,188.72,1.26757933]
[1755390245940,4.07400659,188.76,188.72,1.26757933]
[1755390246141,4.07400659,188.75,188.72,1.26757933]
[1755390246339,1.26757933,188.8,188.72,1.26757933]
[1755390246540,8.70226484,188.79,188.72,1.26757933]
[1755390246740,8.70226484,188.78,188.72,1.26757933]
[1755390246939,4.07499356,188.77,188.72,1.26757933]
[1755390247141,4.07499356,188.76,188.72,1.26757933]
[1755390247343,4.07499356,188.75,188.72,1.26757933]
[1755390247546,1.26757933,188.8,188.72,1.26757933]
[1755390247747,8.70385381,188.79,188.72,1.26757933]
[1755390247947,8.70385381,188.78,188.72,1.26757933]
[1755390248246,4.07573205,188.77,188.72,1.26757933]
[1755390248447,4.07573205,188.76,188.72,1.26757933]
[1755390248648,4.07573205,188.75,188.72,1.26757933]
[1755390248848,4.07573205,188.74,188.72,1.26757933]
[1755390249150,1.26757933,188.8,188.72,1.26757933]
[1755390249450,8.70653514,188.79,188.72,1.26757933]
[1755390249652,8.70653514,188.78,188.72,1.26757933]
[1755390249947,8.70653514,188.77,188.72,1.26757933]
[1755390250147,4.07748302,188.76,188.72,1.26757933]
[1755390250351,4.07748302,188.75,188.72,1.26757933]
[1755390250546,4.07748302,188.74,188.69,5.2962]
[1755390250763,5.92054089,188.81,188.74,1.26757933]
[1755390250948,8.70987737,188.8,188.74,1.26757933]
[1755390251150,8.70987737,188.79,188.74,1.26757933]
[1755390251451,8.70987737,188.78,188.74,1.26757933]
[1755390251651,4.07853287,188.77,188.74,1.26757933]
[1755390251844,4.07853287,188.76,188.74,1.26757933]
[1755390252046,4.07853287,188.75,188.74,1.26757933]
[1755390265566,4.07853287,188.75,188.72,1.26757933]
[1755390265864,4.07853287,188.74,188.72,1.26757933]
[1755390266062,4.07853287,188.73,188.72,1.26757933]
[1755390274465,4.07853287,188.73,188.7,1.26757933]
[1755390274669,4.07853287,188.72,188.7,1.26757933]
[1755390274869,4.07853287,188.71,188.7,1.26757933]
[1755390276569,8.8489588,188.71,188.68,1.26757933]
[1755390276769,4.07853287,188.7,188.68,1.26757933]
[1755390276973,8.84829299,188.69,188.66,1.26757933]
[1755390277176,4.07853287,188.68,188.66,1.26757933]
[1755390277473,4.07853287,188.67,188.66,1.26757933]
[1755390278377,4.07853287,188.73,188.66,1.26757933]
[1755390278575,8.84387957,188.72,188.66,1.26757933]
[1755390278871,8.84387957,188.71,188.66,1.26757933]
[1755390279065,8.84387957,188.7,188.66,1.26757933]
[1755390279269,4.07853287,188.69,188.66,1.26757933]
[1755390279465,4.07853287,188.68,188.66,1.26757933]
[1755390279675,4.07853287,188.67,188.66,1.26757933]
[1755390279867,4.07853287,188.73,188.66,1.26757933]
[1755390280069,8.84221305,188.72,188.66,1.26757933]
[1755390280269,8.8409007,188.71,188.66,1.26757933]
[1755390280469,8.8409007,188.7,188.66,1.26757933]
[1755390280676,4.07853287,188.69,188.66,1.26757933]
[1755390280876,4.07853287,188.68,188.66,1.26757933]
[1755390281075,1.26757933,188.74,188.66,1.26757933]
[1755390281276,8.84070855,188.73,188.66,1.26757933]
[1755390281476,8.84070855,188.72,188.66,1.26757933]
[1755390281676,8.84070855,188.71,188.66,1.26757933]
[1755390281976,8.84070855,188.7,188.66,1.26757933]
[1755390282177,4.07845604,188.69,188.66,1.26757933]
[1755390282376,4.07845604,188.68,188.66,1.26757933]
[1755390282580,1.26757933,188.72,188.66,1.26757933]
[1755390282878,8.83752176,188.71,188.66,1.26757933]
[1755390283071,8.83752176,188.7,188.66,1.26757933]
[1755390283378,4.07749534,188.69,188.66,1.26757933]
[1755390283577,4.07749534,188.68,188.66,1.26757933]
[1755390283784,1.26757933,188.72,188.66,1.26757933]
[1755390283979,8.83533627,188.71,188.66,1.26757933]
[1755390284176,8.83533627,188.7,188.66,1.26757933]
[1755390284377,4.07649189,188.69,188.66,1.26757933]
[1755390284577,4.07649189,188.68,188.66,1.26757933]
[1755390284777,1.26757933,188.72,188.66,1.26757933]
[1755390284979,8.83338611,188.71,188.66,1.26757933]
[1755390285179,8.83338611,188.7,188.66,1.26757933]
[1755390285480,4.07559208,188.69,188.66,1.26757933]
[1755390285679,4.07559208,188.68,188.66,1.26757933]
[1755390285880,1.26757933,188.72,188.66,1.26757933]
[1755390286082,8.83353211,188.71,188.66,1.26757933]
[1755390286281,8.83353211,188.7,188.66,1.26757933]
[1755390286477,4.07558707,188.69,188.66,1.26757933]
[1755390286679,4.07558707,188.68,188.66,1.26757933]
[1755390286980,1.26757933,188.72,188.66,1.26757933]
[1755390287181,8.83212948,188.71,188.66,1.26757933]
[1755390287472,4.07494075,188.7,188.66,1.26757933]
[1755390287677,4.07494075,188.69,188.66,1.26757933]
[1755390287972,4.07494075,188.68,188.66,1.26757933]
[1755390288173,1.26757933,188.72,188.66,1.26757933]
[1755390288376,8.83287727,188.71,188.66,1.26757933]
[1755390288576,4.07643658,188.7,188.66,1.26757933]
[1755390288771,4.07643658,188.69,188.66,1.26757933]
[1755390288977,1.26757933,188.72,188.66,1.26757933]
[1755390289184,8.83241033,188.71,188.66,1.26757933]
[1755390289385,4.07643736,188.7,188.66,1.26757933]
[1755390289679,4.07643736,188.69,188.66,1.26757933]
[1755390289881,4.07643736,188.68,188.66,1.26757933]
[1755390290076,1.26757933,188.72,188.66,1.26757933]
[1755390290276,8.83019203,188.71,188.66,1.26757933]
[1755390290473,8.83019203,188.7,188.66,1.26757933]
[1755390290774,4.07491006,188.69,188.66,1.26757933]
[1755390290976,4.07491006,188.68,188.66,1.26757933]
[1755390291183,1.26757933,188.72,188.66,1.26757933]
[1755390291380,8.82897451,188.71,188.66,1.26757933]
[1755390291575,8.82897451,188.7,188.66,1.26757933]
[1755390291779,4.07444251,188.69,188.66,1.26757933]
[1755390291982,4.07444251,188.68,188.66,1.26757933]
[1755390292181,1.26757933,188.72,188.66,1.26757933]
[1755390292383,8.8276768,188.71,188.66,1.26757933]
[1755390292582,8.8276768,188.7,188.66,1.26757933]
[1755390292785,4.07403855,188.69,188.66,1.26757933]
[1755390293082,4.07403855,188.68,188.66,1.26757933]
[1755390293272,1.26757933,188.72,188.66,1.26757933]
[1755390293473,8.82693119,188.71,188.66,1.26757933]
[1755390293772,4.07369454,188.7,188.66,1.26757933]
[1755390293975,4.07369454,188.69,188.66,1.26757933]
[1755390294181,4.07369454,188.68,188.66,1.26757933]
[1755390294477,1.26757933,188.72,188.66,1.26757933]
[1755390294682,8.82630914,188.71,188.66,1.26757933]
[1755390294881,4.07340757,188.7,188.66,1.26757933]
[1755390295184,4.07340757,188.69,188.66,1.26757933]
[1755390295485,1.26757933,188.72,188.66,1.26757933]
[1755390295679,8.82580547,188.71,188.66,1.26757933]
[1755390295981,8.8257878,188.7,188.66,1.26757933]
[1755390296182,4.07317521,188.69,188.66,1.26757933]
[1755390296383,4.07317521,188.68,188.66,1.26757933]
[1755390296577,1.26757933,188.72,188.66,1.26757933]
[1755390296777,8.87788355,188.71,188.66,1.26757933]
[1755390296975,8.87788355,188.7,188.66,1.26757933]
[1755390297179,4.07291801,188.69,188.66,1.26757933]
[1755390297478,4.07291801,188.68,188.66,1.26757933]
[1755390297676,1.26757933,188.72,188.66,1.26757933]
[1755390297882,8.87749094,188.71,188.66,1.26757933]
[1755390298084,8.87749094,188.7,188.66,1.26757933]
[1755390298401,8.87731229,188.69,188.66,1.26757933]
[1755390298586,4.07273798,188.68,188.66,1.26757933]
[1755390298785,1.26757933,188.72,188.66,1.26757933]
[1755390299085,8.87717759,188.71,188.66,1.26757933]
[1755390299284,8.87717759,188.7,188.66,1.26757933]
[1755390299485,8.87717759,188.7,188.62,5.2982]
[1755390299486,8.87717759,188.69,188.65,1.26757933]
[1755390299786,4.07259431,188.68,188.65,1.26757933]
[1755390299986,1.26757933,188.72,188.65,1.26757933]
[1755390300186,8.87692481,188.71,188.65,1.26757933]
[1755390300385,8.87692481,188.7,188.65,1.26757933]
[1755390300591,8.87692481,188.69,188.65,1.26757933]
[1755390300788,4.07248333,188.68,188.65,1.26757933]
[1755390300983,1.26757933,188.72,188.65,1.26757933]
[1755390301189,8.87778607,188.71,188.65,1.26757933]
[1755390301389,8.87778607,188.7,188.65,1.26757933]
[1755390301592,4.07287345,188.69,188.65,1.26757933]
[1755390301791,4.07287345,188.68,188.65,1.26757933]